[Event "African Open (w)"]
[Site "followchess.com"]
[Date "2022.09.21"]
[Round "4"]
[White "Aramude, Sandra"]
[Black "Oyenga, Justine Anassika"]
[Result "1-0"]
[ECO "A01"]
[WhiteElo "1813"]
[BlackElo "1192"]
[PlyCount "61"]
[EventDate "2022.??.??"]
[TimeControl "5400+30"]

1. b3 {[%emt 0:00:15]} c5 {[%emt 0:00:26]} 2. Bb2 {[%emt 0:00:54]} f6 {[%emt 0:
00:38]} 3. e3 {[%emt 0:01:36]} e5 {[%emt 0:00:33]} 4. c4 Nc6 {[%emt 0:01:12]}
5. Nc3 {[%emt 0:02:43]} Nge7 {[%emt 0:01:23]} 6. Rc1 {[%emt 0:01:14]} d6 {
[%emt 0:02:29]} 7. Nf3 {[%emt 0:01:32]} Ng6 {[%emt 0:01:15]} 8. Be2 {[%emt 0:
05:12]} Be7 {[%emt 0:00:45]} 9. Qc2 {[%emt 0:01:27]} Be6 {[%emt 0:00:40]} 10.
a3 {[%emt 0:00:37]} Bf7 {[%emt 0:05:37]} 11. Nd5 {[%emt 0:05:29]} O-O {[%emt 0:
02:10]} 12. h4 {[%emt 0:01:11]} h5 {[%emt 0:04:59]} 13. Bd3 {[%emt 0:00:43]}
Kh7 {[%emt 0:03:26]} 14. g4 {[%emt 0:00:33]} Kh6 {[%emt 0:15:20]} 15. Ng5 {
[%emt 0:13:27]} Bxd5 {[%emt 0:11:43]} 16. cxd5 {[%emt 0:01:32]} fxg5 {[%emt 0:
16:17]} 17. hxg5+ Kh7 18. Bxg6+ Kg8 {[%emt 0:02:45]} 19. Bh7+ Kh8 20. Rxh5 Bxg5
{[%emt 0:06:02]} 21. dxc6 {[%emt 0:10:10]} Qf6 {[%emt 0:00:22]} 22. Qf5 {
[%emt 0:00:46]} Qxf5 {[%emt 0:04:02]} 23. Bxf5+ Bh6 {[%emt 0:00:35]} 24. c7 {
[%emt 0:01:53]} Kg8 {[%emt 0:05:13]} 25. c8=Q Raxc8 26. Bxc8 {[%emt 0:02:06]}
Rxc8 27. g5 Bxg5 {[%emt 0:03:14]} 28. Rxg5 {[%emt 0:00:43]} Kh7 {[%emt 0:00:27]
} 29. Ke2 {[%emt 0:00:13]} Kh6 30. f4 b6 {[%emt 0:02:05]} 31. Rh1# {[%emt 0:00:
44]} 1-0

[Event "African Open (w)"]
[Site "followchess.com"]
[Date "2022.09.22"]
[Round "5"]
[White "Abigail Karyah"]
[Black "OLORUNTOLA, Oluwatobiloba"]
[Result "1/2-1/2"]
[ECO "C01"]
[WhiteElo "1435"]
[BlackElo "1918"]
[PlyCount "109"]
[EventDate "2022.??.??"]
[TimeControl "5400+30"]

1. e4 {[%emt 0:00:03]} e6 {[%emt 0:00:11]} 2. d4 {[%emt 0:00:06]} d5 {[%emt 0:
00:03]} 3. exd5 {[%emt 0:00:10]} exd5 {[%emt 0:00:12]} 4. Nf3 {[%emt 0:00:15]}
Nf6 {[%emt 0:00:15]} 5. Be2 {[%emt 0:00:10]} Bd6 {[%emt 0:00:16]} 6. O-O {
[%emt 0:00:39]} O-O {[%emt 0:00:18]} 7. Bg5 {[%emt 0:00:10]} h6 {[%emt 0:00:51]
} 8. Bh4 {[%emt 0:00:32]} Bf5 {[%emt 0:01:53]} 9. Nc3 {[%emt 0:04:18]} c6 {
[%emt 0:01:03]} 10. Qd2 {[%emt 0:00:18]} Nbd7 {[%emt 0:02:22]} 11. Rfe1 {
[%emt 0:02:33]} Qc7 {[%emt 0:07:22]} 12. Bxf6 {[%emt 0:02:45]} Nxf6 {[%emt 0:
00:47]} 13. h3 {[%emt 0:05:08]} Bf4 {[%emt 0:04:35]} 14. Qd1 {[%emt 0:01:48]}
Rae8 {[%emt 0:03:46]} 15. Bd3 {[%emt 0:12:06]} Rxe1+ {[%emt 0:01:58]} 16. Nxe1
{[%emt 0:05:13]} Bxd3 {[%emt 0:24:20]} 17. Nxd3 {[%emt 0:01:15]} Bd6 {[%emt 0:
03:43]} 18. f3 {[%emt 0:07:17]} Re8 {[%emt 0:07:19]} 19. Qd2 {[%emt 0:02:07]}
Nh5 {[%emt 0:02:51]} 20. Ne2 {[%emt 0:02:18]} Bh2+ {[%emt 0:15:03]} 21. Kf1 {
[%emt 0:01:27]} Ng3+ {[%emt 0:07:55]} 22. Nxg3 {[%emt 0:00:39]} Bxg3 {[%emt 0:
00:18]} 23. c3 {[%emt 0:11:09]} Qe7 {[%emt 0:01:55]} 24. Nf2 {[%emt 0:05:56]}
Kf8 {[%emt 0:04:09]} 25. Re1 {[%emt 0:01:34]} Qxe1+ {[%emt 0:01:18]} 26. Qxe1 {
[%emt 0:00:06]} Rxe1+ {[%emt 0:00:02]} 27. Kxe1 {[%emt 0:00:09]} Ke7 {[%emt 0:
00:21]} 28. Ke2 {[%emt 0:00:10]} Ke6 {[%emt 0:00:51]} 29. Nh1 {[%emt 0:01:41]}
Bf4 {[%emt 0:00:28]} 30. g3 {[%emt 0:00:27]} Bc1 {[%emt 0:00:17]} 31. b3 {
[%emt 0:00:10]} Kf5 {[%emt 0:00:35]} 32. Nf2 {[%emt 0:01:10]} Ba3 {[%emt 0:00:
59]} 33. Nd3 {[%emt 0:02:02]} Bd6 {[%emt 0:00:24]} 34. Kf2 {[%emt 0:00:56]} h5
{[%emt 0:01:20]} 35. h4 {[%emt 0:00:57]} f6 {[%emt 0:00:30]} 36. a4 {[%emt 0:
07:18]} a6 {[%emt 0:01:03]} 37. a5 {[%emt 0:02:53]} g5 {[%emt 0:00:19]} 38.
hxg5 {[%emt 0:03:07]} fxg5 {[%emt 0:01:56]} 39. Kg2 {[%emt 0:07:27]} h4 {
[%emt 0:01:59]} 40. gxh4 {[%emt 0:00:33]} gxh4 {[%emt 0:00:02]} 41. Kh3 {
[%emt 0:00:15]} Be7 {[%emt 0:03:26]} 42. Kg2 {[%emt 0:02:54]} Bg5 {[%emt 0:00:
00]} 43. c4 {[%emt 0:00:00]} dxc4 {[%emt 0:00:00]} 44. bxc4 {[%emt 0:00:00]}
Bd2 {[%emt 0:00:00]} 45. Nc5 {[%emt 0:00:00]} Bxa5 {[%emt 0:00:00]} 46. Nxb7 {
[%emt 0:00:00]} Bb6 {[%emt 0:00:00]} 47. d5 {[%emt 0:00:00]} cxd5 {[%emt 0:00:
00]} 48. cxd5 {[%emt 0:00:00]} a5 {[%emt 0:00:00]} 49. Nd6+ {[%emt 0:00:00]}
Kf6 {[%emt 0:00:00]} 50. Kh3 {[%emt 0:00:00]} Bf2 {[%emt 0:00:00]} 51. Ne4+ {
[%emt 0:00:00]} Ke5 {[%emt 0:00:00]} 52. Nxf2 {[%emt 0:00:00]} a4 {[%emt 0:00:
00]} 53. Nd1 {[%emt 0:00:00]} Kxd5 {[%emt 0:00:00]} 54. Nc3+ {[%emt 0:00:00]}
Kd4 {[%emt 0:00:00]} 55. Nxa4 {[%emt 0:00:00]} 1/2-1/2

[Event "African Open (w)"]
[Site "followchess.com"]
[Date "2022.09.22"]
[Round "5"]
[White "Mudodo, Refiloe Hazel"]
[Black "Mbatha, Constance"]
[Result "1/2-1/2"]
[ECO "C41"]
[WhiteElo "1683"]
[BlackElo "1613"]
[PlyCount "142"]
[EventDate "2022.??.??"]
[TimeControl "5400+30"]

1. e4 {[%emt 0:10:17]} e5 {[%emt 0:07:40]} 2. Nf3 {[%emt 0:00:30]} d6 {[%emt 0:
00:30]} 3. d4 {[%emt 0:00:30]} exd4 {[%emt 0:00:30]} 4. Qxd4 {[%emt 0:00:30]}
h6 {[%emt 0:00:30]} 5. Nc3 {[%emt 0:00:30]} Nc6 {[%emt 0:00:30]} 6. Bb5 {
[%emt 0:00:30]} Bd7 {[%emt 0:00:30]} 7. Bxc6 {[%emt 0:00:30]} Bxc6 {[%emt 0:00:
30]} 8. Bf4 {[%emt 0:00:30]} f6 {[%emt 0:00:30]} 9. O-O-O {[%emt 0:00:30]} Ne7
{[%emt 0:00:30]} 10. Rhe1 {[%emt 0:00:30]} Ng6 {[%emt 0:00:30]} 11. Be3 {
[%emt 0:00:30]} Be7 {[%emt 0:00:30]} 12. Qc4 {[%emt 0:00:30]} Qd7 {[%emt 0:00:
30]} 13. Nd5 {[%emt 0:00:30]} a6 {[%emt 0:00:30]} 14. Nf4 {[%emt 0:00:30]} Nxf4
{[%emt 0:00:30]} 15. Bxf4 {[%emt 0:00:30]} O-O-O {[%emt 0:00:30]} 16. Nd4 {
[%emt 0:00:30]} Bb5 {[%emt 0:00:30]} 17. Qc3 {[%emt 0:00:30]} Rhe8 {[%emt 0:00:
30]} 18. Nf5 {[%emt 0:00:30]} Bf8 {[%emt 0:00:30]} 19. Bxd6 {[%emt 0:00:30]}
Qf7 {[%emt 0:00:30]} 20. Bxf8 {[%emt 0:00:30]} Qxf8 {[%emt 0:00:30]} 21. f3 {
[%emt 0:00:30]} Kb8 {[%emt 0:00:30]} 22. Rxd8+ Rxd8 {[%emt 0:00:30]} 23. Rd1 {
[%emt 0:01:00]} Re8 {[%emt 0:00:30]} 24. Rd2 {[%emt 0:00:30]} Rd8 {[%emt 0:33:
09]} 25. Rd1 {[%emt 0:36:21]} Re8 {[%emt 0:00:05]} 26. Qd2 {[%emt 0:03:01]} h5
{[%emt 0:01:04]} 27. Qd5 {[%emt 0:02:43]} g6 {[%emt 0:00:28]} 28. Nd4 {[%emt 0:
01:39]} Re5 {[%emt 0:04:14]} 29. Qb3 {[%emt 0:00:40]} Bd7 {[%emt 0:04:03]} 30.
Kb1 {[%emt 0:02:50]} Qe8 {[%emt 0:00:13]} 31. Qe3 {[%emt 0:00:54]} g5 {[%emt 0:
01:43]} 32. Qd3 {[%emt 0:03:51]} g4 {[%emt 0:02:24]} 33. b3 {[%emt 0:00:42]}
Qg6 {[%emt 0:03:33]} 34. Ne2 {[%emt 0:02:55]} Re7 {[%emt 0:04:24]} 35. Nf4 {
[%emt 0:04:50]} Qh7 {[%emt 0:01:42]} 36. Nd5 {[%emt 0:00:24]} Rf7 {[%emt 0:00:
23]} 37. Nxf6 {[%emt 0:03:43]} Rxf6 {[%emt 0:00:57]} 38. Qxd7 {[%emt 0:00:06]}
Qg6 {[%emt 0:01:26]} 39. Qd8+ {[%emt 0:00:59]} Ka7 {[%emt 0:00:02]} 40. Qxc7 {
[%emt 0:00:31]} Rc6 {[%emt 0:00:55]} 41. Qg3 {[%emt 0:00:53]} Qg7 {[%emt 0:01:
03]} 42. Qf2+ {[%emt 0:01:21]} Kb8 {[%emt 0:00:10]} 43. f4 {[%emt 0:02:46]} Qc3
{[%emt 0:04:07]} 44. Qd2 {[%emt 0:00:23]} Qg7 {[%emt 0:02:36]} 45. Qd8+ {
[%emt 0:01:05]} Rc8 {[%emt 0:00:24]} 46. Qd6+ {[%emt 0:00:31]} Ka8 {[%emt 0:00:
03]} 47. Qe5 {[%emt 0:01:01]} Qf7 {[%emt 0:01:09]} 48. f5 {[%emt 0:01:25]} Re8
{[%emt 0:01:01]} 49. Qd4 {[%emt 0:01:02]} Qe7 {[%emt 0:02:13]} 50. g3 {[%emt 0:
01:45]} h4 {[%emt 0:01:51]} 51. Rf1 {[%emt 0:03:07]} hxg3 {[%emt 0:00:29]} 52.
hxg3 {[%emt 0:00:23]} Qc7 {[%emt 0:00:12]} 53. Qe3 {[%emt 0:01:08]} Rc8 {
[%emt 0:00:54]} 54. Rf2 {[%emt 0:03:14]} Rh8 {[%emt 0:00:34]} 55. f6 {[%emt 0:
00:35]} Qe5 {[%emt 0:02:05]} 56. c3 {[%emt 0:00:44]} Rf8 {[%emt 0:01:46]} 57.
f7 {[%emt 0:00:24]} Qc7 {[%emt 0:01:00]} 58. e5 {[%emt 0:00:56]} Rxf7 {[%emt 0:
01:36]} 59. Rxf7 {[%emt 0:02:54]} Qxf7 60. e6 {[%emt 0:01:23]} Qe7 {[%emt 0:02:
37]} 61. Qe4 {[%emt 0:00:24]} Qc5 {[%emt 0:01:39]} 62. e7 {[%emt 0:01:08]} Qg1+
{[%emt 0:00:04]} 63. Kb2 {[%emt 0:00:33]} Qf2+ {[%emt 0:00:28]} 64. Qc2 {
[%emt 0:00:11]} Qe3 {[%emt 0:00:25]} 65. Qh7 {[%emt 0:03:19]} Qf2+ {[%emt 0:00:
19]} 66. Qc2 {[%emt 0:02:03]} Qe3 {[%emt 0:00:03]} 67. Qf5 {[%emt 0:00:18]}
Qe2+ {[%emt 0:01:22]} 68. Ka3 {[%emt 0:00:00]} Qxe7+ {[%emt 0:00:00]} 69. b4 {
[%emt 0:00:00]} Qe2 {[%emt 0:00:00]} 70. Qc8+ {[%emt 0:00:00]} Ka7 {[%emt 0:00:
00]} 71. Qc5+ {[%emt 0:00:00]} Ka8 {[%emt 0:00:00]} 1/2-1/2

[Event "African Open (w)"]
[Site "followchess.com"]
[Date "2022.09.22"]
[Round "5"]
[White "Ampaire Shakira"]
[Black "Ayemou Mazan Emmanuela Esther"]
[Result "1-0"]
[ECO "C54"]
[WhiteElo "1657"]
[BlackElo "1523"]
[PlyCount "47"]
[EventDate "2022.??.??"]
[TimeControl "5400+30"]

1. e4 e5 2. Nf3 Nc6 3. Bc4 Bc5 4. c3 Nf6 5. d4 exd4 6. cxd4 Bb4+ 7. Nc3 Nxe4 8.
O-O Nxc3 9. bxc3 Bxc3 10. Qb3 Bxa1 11. Bxf7+ Kf8 12. Bg5 Nxd4 13. Qa3+ d6 14.
Bxd8 Kxf7 15. Bxc7 Nxf3+ 16. Qxf3+ Bf6 17. Bxd6 Rd8 18. Be5 Bd7 19. Bxf6 Bc6
20. Qh5+ Kxf6 21. Qxh7 Rd4 22. Qc2 Rad8 23. Qc3 Kf7 24. h3 1-0

[Event "African Open (w)"]
[Site "followchess.com"]
[Date "2022.09.22"]
[Round "5"]
[White "Pires, Luzia"]
[Black "Van Zyl, Charlize"]
[Result "1/2-1/2"]
[ECO "A48"]
[WhiteElo "1839"]
[BlackElo "1710"]
[PlyCount "81"]
[EventDate "2022.??.??"]
[TimeControl "5400+30"]

1. d4 {[%emt 0:09:53]} Nf6 {[%emt 0:07:05]} 2. Nf3 {[%emt 0:00:30]} g6 {
[%emt 0:00:30]} 3. e3 {[%emt 0:00:30]} Bg7 {[%emt 0:00:30]} 4. Bd3 {[%emt 0:00:
30]} d5 {[%emt 0:00:30]} 5. Nbd2 {[%emt 0:00:30]} O-O {[%emt 0:00:30]} 6. O-O {
[%emt 0:00:30]} c5 {[%emt 0:00:30]} 7. b3 {[%emt 0:00:30]} cxd4 {[%emt 0:00:30]
} 8. exd4 {[%emt 0:00:30]} Nc6 {[%emt 0:00:30]} 9. c3 {[%emt 0:00:30]} Nh5 {
[%emt 0:00:30]} 10. Bb2 {[%emt 0:00:30]} Nf4 11. Bc2 {[%emt 0:00:30]} Bg4 {
[%emt 0:01:00]} 12. h3 {[%emt 0:00:30]} Bd7 {[%emt 0:00:30]} 13. Re1 {[%emt 0:
00:30]} Qc8 {[%emt 0:00:30]} 14. Ne5 {[%emt 0:00:30]} Nxe5 {[%emt 0:00:30]} 15.
dxe5 {[%emt 0:00:30]} Bf5 {[%emt 0:00:30]} 16. c4 {[%emt 0:00:30]} Rd8 {
[%emt 0:00:30]} 17. Qf3 {[%emt 0:00:30]} Nxh3+ 18. gxh3 {[%emt 0:00:30]} Bxc2 {
[%emt 0:01:00]} 19. cxd5 {[%emt 0:00:30]} Qf5 {[%emt 0:00:30]} 20. Qg2 {
[%emt 0:00:30]} Qd3 {[%emt 0:00:30]} 21. Nc4 {[%emt 0:00:30]} Qxd5 {[%emt 0:00:
30]} 22. Qxd5 {[%emt 0:00:30]} Rxd5 {[%emt 0:00:30]} 23. Ne3 {[%emt 0:47:08]}
Rc5 {[%emt 0:49:21]} 24. Rac1 {[%emt 0:00:31]} Rac8 {[%emt 0:00:26]} 25. Ba3 {
[%emt 0:00:39]} R5c6 {[%emt 0:05:29]} 26. Nd5 {[%emt 0:00:55]} Bf8 {[%emt 0:02:
47]} 27. Bxe7 {[%emt 0:01:30]} h5 {[%emt 0:03:40]} 28. h4 {[%emt 0:00:50]} Bf5
{[%emt 0:03:09]} 29. Nf6+ {[%emt 0:04:02]} Kg7 {[%emt 0:02:16]} 30. Rxc6 {
[%emt 0:00:57]} Rxc6 {[%emt 0:03:55]} 31. Bxf8+ {[%emt 0:00:25]} Kxf8 {[%emt 0:
00:08]} 32. Rd1 {[%emt 0:00:06]} Ke7 {[%emt 0:00:59]} 33. Rd2 {[%emt 0:01:04]}
Rc2 {[%emt 0:03:28]} 34. Rxc2 {[%emt 0:00:42]} Bxc2 {[%emt 0:00:07]} 35. f4 {
[%emt 0:03:11]} Ke6 {[%emt 0:01:47]} 36. Kf2 {[%emt 0:00:02]} Kf5 {[%emt 0:00:
29]} 37. Kf3 {[%emt 0:02:49]} a5 {[%emt 0:02:41]} 38. Ne8 {[%emt 0:12:31]} Be4+
{[%emt 0:03:03]} 39. Ke3 {[%emt 0:04:47]} Bc6 {[%emt 0:01:37]} 40. Nd6+ {
[%emt 0:05:10]} Ke6 {[%emt 0:03:48]} 41. Kd4 {[%emt 0:02:45]} 1/2-1/2

[Event "African Open (w)"]
[Site "followchess.com"]
[Date "2022.09.22"]
[Round "5"]
[White "Amadasun, Rosemary"]
[Black "Likando Namakau"]
[Result "0-1"]
[ECO "B41"]
[WhiteElo "1807"]
[BlackElo "1527"]
[PlyCount "100"]
[EventDate "2022.??.??"]
[TimeControl "5400+30"]

1. e4 {[%emt 0:06:43]} c5 {[%emt 0:16:13]} 2. Nf3 {[%emt 0:00:30]} e6 {[%emt 0:
00:30]} 3. d4 {[%emt 0:00:30]} cxd4 {[%emt 0:00:30]} 4. Nxd4 {[%emt 0:00:30]}
Nf6 {[%emt 0:00:30]} 5. Nc3 {[%emt 0:00:30]} Bb4 6. Ndb5 a6 {[%emt 0:03:36]} 7.
Nd6+ {[%emt 0:01:06]} Kf8 {[%emt 0:12:25]} 8. e5 {[%emt 0:04:38]} Nd5 {[%emt 0:
00:42]} 9. Qf3 {[%emt 0:01:54]} Bxd6 {[%emt 0:00:48]} 10. exd6 {[%emt 0:00:42]}
Nxc3 {[%emt 0:08:09]} 11. Qxc3 {[%emt 0:00:27]} Nc6 {[%emt 0:00:52]} 12. Be2 {
[%emt 0:00:44]} b5 {[%emt 0:01:14]} 13. Bf3 {[%emt 0:01:25]} Bb7 {[%emt 0:00:
26]} 14. O-O {[%emt 0:00:43]} f6 {[%emt 0:00:58]} 15. Be3 {[%emt 0:02:08]} Kf7
{[%emt 0:02:39]} 16. Qd2 {[%emt 0:02:06]} Rf8 {[%emt 0:00:24]} 17. b3 {[%emt 0:
04:55]} b4 {[%emt 0:01:23]} 18. Bxc6 {[%emt 0:00:48]} Bxc6 {[%emt 0:00:11]} 19.
Qxb4 {[%emt 0:00:20]} Kg8 {[%emt 0:00:36]} 20. c4 {[%emt 0:00:58]} f5 {[%emt 0:
01:32]} 21. Qd2 {[%emt 0:03:59]} h6 {[%emt 0:02:22]} 22. b4 {[%emt 0:01:52]}
Qh4 {[%emt 0:01:14]} 23. f4 {[%emt 0:01:02]} Rf6 {[%emt 0:02:13]} 24. Rf2 {
[%emt 0:13:44]} Rg6 {[%emt 0:02:20]} 25. Bd4 {[%emt 0:02:46]} Rg4 {[%emt 0:01:
43]} 26. Be5 {[%emt 0:00:29]} Qh3 {[%emt 0:02:03]} 27. a4 {[%emt 0:01:24]} Qb3
{[%emt 0:04:37]} 28. Qc3 {[%emt 0:07:08]} Bxa4 {[%emt 0:03:32]} 29. Qxb3 {
[%emt 0:01:18]} Bxb3 {[%emt 0:00:23]} 30. c5 {[%emt 0:01:16]} Bc4 {[%emt 0:01:
23]} 31. Rc2 {[%emt 0:00:37]} Bb5 {[%emt 0:00:13]} 32. Kf2 {[%emt 0:03:17]} h5
{[%emt 0:02:05]} 33. g3 {[%emt 0:01:29]} h4 {[%emt 0:04:17]} 34. Ra3 {[%emt 0:
01:32]} hxg3+ {[%emt 0:01:26]} 35. Rxg3 {[%emt 0:00:53]} Rxg3 {[%emt 0:00:26]}
36. Kxg3 {[%emt 0:00:36]} Kf7 {[%emt 0:00:15]} 37. Kf3 {[%emt 0:01:02]} Rh8 {
[%emt 0:00:40]} 38. Ke3 {[%emt 0:00:21]} Rh3+ {[%emt 0:00:55]} 39. Kd2 {
[%emt 0:01:05]} Rxh2+ {[%emt 0:02:05]} 40. Kc1 {[%emt 0:00:29]} Rxc2+ {[%emt 0:
01:31]} 41. Kxc2 {[%emt 0:00:04]} Kg6 {[%emt 0:00:51]} 42. Kd2 {[%emt 0:00:09]}
Kh6 {[%emt 0:00:23]} 43. Ke3 {[%emt 0:00:09]} g5 {[%emt 0:01:07]} 44. fxg5+ {
[%emt 0:00:05]} Kxg5 {[%emt 0:00:59]} 45. Kf3 {[%emt 0:00:42]} Bc6+ {[%emt 0:
00:50]} 46. Kg3 {[%emt 0:00:20]} Bb7 {[%emt 0:00:56]} 47. Bf4+ {[%emt 0:07:05]}
Kf6 {[%emt 0:00:44]} 48. Bd2 {[%emt 0:01:01]} e5 {[%emt 0:00:23]} 49. Kf2 {
[%emt 0:01:50]} f4 {[%emt 0:01:11]} 50. Bc3 Kf5 {[%emt 0:02:05]} 0-1

[Event "African Open (w)"]
[Site "followchess.com"]
[Date "2022.09.22"]
[Round "5"]
[White "Ayemou Akissi Victoire Sinchi"]
[Black "Marochkina, Nadezhda Valerevna"]
[Result "0-1"]
[ECO "B18"]
[WhiteElo "1182"]
[BlackElo "1689"]
[PlyCount "92"]
[EventDate "2022.??.??"]
[TimeControl "5400+30"]

1. e4 {[%emt 0:00:08]} c6 {[%emt 0:00:06]} 2. d4 {[%emt 0:00:17]} d5 {[%emt 0:
00:06]} 3. Nc3 {[%emt 0:00:32]} dxe4 {[%emt 0:00:09]} 4. Nxe4 {[%emt 0:00:19]}
Bf5 {[%emt 0:00:14]} 5. Ng3 {[%emt 0:00:22]} Bg6 {[%emt 0:00:17]} 6. Nf3 {
[%emt 0:00:21]} Nf6 {[%emt 0:00:54]} 7. Be3 {[%emt 0:00:54]} e6 {[%emt 0:00:21]
} 8. Bd3 {[%emt 0:00:40]} Bxd3 {[%emt 0:00:11]} 9. Qxd3 {[%emt 0:00:32]} Be7 {
[%emt 0:03:00]} 10. O-O-O {[%emt 0:01:19]} b5 {[%emt 0:03:18]} 11. Kd2 {
[%emt 0:03:19]} Qa5+ {[%emt 0:01:54]} 12. c3 {[%emt 0:01:04]} Qxa2 {[%emt 0:00:
40]} 13. Qc2 {[%emt 0:00:44]} Nbd7 {[%emt 0:03:22]} 14. Ra1 {[%emt 0:01:17]}
Qd5 {[%emt 0:00:25]} 15. Ke2 {[%emt 0:01:27]} Nb6 {[%emt 0:03:31]} 16. Rhd1 {
[%emt 0:03:16]} O-O {[%emt 0:03:54]} 17. Kf1 {[%emt 0:01:53]} a5 {[%emt 0:04:
28]} 18. Kg1 {[%emt 0:01:47]} a4 {[%emt 0:03:49]} 19. Ne2 {[%emt 0:04:55]} Ra6
{[%emt 0:01:22]} 20. Nf4 {[%emt 0:01:28]} Qd7 {[%emt 0:01:53]} 21. Ne5 {
[%emt 0:01:32]} Qc7 {[%emt 0:00:37]} 22. Ra2 {[%emt 0:03:23]} Rfa8 {[%emt 0:03:
11]} 23. Rda1 {[%emt 0:01:57]} Nbd5 24. b4 {[%emt 0:02:15]} Bd6 {[%emt 0:07:38]
} 25. Nfd3 {[%emt 0:06:45]} Nd7 {[%emt 0:00:00]} 26. Nxd7 {[%emt 0:01:51]} Qxd7
{[%emt 0:00:11]} 27. Ne5 {[%emt 0:01:44]} Qc7 {[%emt 0:00:29]} 28. Nf3 {
[%emt 0:00:58]} Re8 {[%emt 0:01:27]} 29. h3 {[%emt 0:01:01]} Raa8 {[%emt 0:03:
45]} 30. Ng5 {[%emt 0:01:54]} g6 {[%emt 0:00:42]} 31. Ne4 {[%emt 0:00:45]} Be7
{[%emt 0:04:02]} 32. Bh6 {[%emt 0:01:21]} Nf6 {[%emt 0:03:10]} 33. Ra3 {
[%emt 0:05:18]} Bd8 {[%emt 0:04:38]} 34. Re1 {[%emt 0:02:36]} Nxe4 {[%emt 0:02:
49]} 35. Qxe4 {[%emt 0:00:59]} Bf6 {[%emt 0:00:01]} 36. Re3 {[%emt 0:01:14]}
Rac8 {[%emt 0:10:00]} 37. Rg3 {[%emt 0:08:31]} e5 {[%emt 0:04:20]} 38. dxe5 {
[%emt 0:01:40]} Rxe5 {[%emt 0:03:00]} 39. Qf4 {[%emt 0:02:07]} Re1+ {[%emt 0:
00:45]} 40. Kh2 {[%emt 0:00:12]} Be5 {[%emt 0:00:38]} 41. Qd2 {[%emt 0:01:02]}
Bxg3+ {[%emt 0:00:15]} 42. fxg3 {[%emt 0:01:14]} Rce8 {[%emt 0:00:52]} 43. Qd4
{[%emt 0:01:02]} Qe5 {[%emt 0:00:12]} 44. Qb6 {[%emt 0:01:10]} Qf6 {[%emt 0:00:
32]} 45. Qc5 {[%emt 0:00:41]} R1e5 {[%emt 0:00:55]} 46. Qd4 {[%emt 0:00:34]} g5
{[%emt 0:00:18]} 0-1

[Event "African Open (w)"]
[Site "followchess.com"]
[Date "2022.09.22"]
[Round "5"]
[White "Oyenga, Justine Anassika"]
[Black "Oyelese, Mayomi"]
[Result "0-1"]
[ECO "B28"]
[WhiteElo "1192"]
[BlackElo "1677"]
[PlyCount "84"]
[EventDate "2022.??.??"]
[TimeControl "5400+30"]

1. e4 {[%emt 0:00:10]} c5 {[%emt 0:00:02]} 2. Nf3 {[%emt 0:00:26]} d6 {[%emt 0:
00:02]} 3. c3 {[%emt 0:00:54]} a6 {[%emt 0:03:57]} 4. Bc4 {[%emt 0:00:30]} e6 {
[%emt 0:00:19]} 5. d4 {[%emt 0:00:26]} d5 {[%emt 0:00:24]} 6. Be2 {[%emt 0:02:
28]} dxe4 {[%emt 0:00:48]} 7. Ng5 {[%emt 0:00:39]} cxd4 {[%emt 0:00:38]} 8.
Nxe4 {[%emt 0:00:37]} Nc6 {[%emt 0:00:47]} 9. cxd4 {[%emt 0:02:00]} Qxd4 {
[%emt 0:01:02]} 10. Nbc3 {[%emt 0:07:37]} Bb4 {[%emt 0:03:23]} 11. Qc2 {
[%emt 0:03:52]} f5 {[%emt 0:01:56]} 12. Be3 {[%emt 0:00:35]} Qxe4 {[%emt 0:01:
03]} 13. Qxe4 {[%emt 0:01:51]} Bxc3+ {[%emt 0:01:22]} 14. bxc3 {[%emt 0:00:15]}
fxe4 {[%emt 0:00:07]} 15. O-O {[%emt 0:00:06]} b5 {[%emt 0:01:02]} 16. Rfd1 {
[%emt 0:00:45]} Nf6 {[%emt 0:00:17]} 17. Rd6 {[%emt 0:01:37]} Bb7 {[%emt 0:00:
48]} 18. Rxe6+ {[%emt 0:00:46]} Kd7 {[%emt 0:04:55]} 19. Rxf6 {[%emt 0:02:46]}
gxf6 {[%emt 0:00:02]} 20. Rd1+ Ke6 {[%emt 0:01:10]} 21. f3 {[%emt 0:08:02]}
Rad8 {[%emt 0:02:34]} 22. Rf1 {[%emt 0:00:28]} f5 {[%emt 0:00:57]} 23. fxe4 {
[%emt 0:02:01]} fxe4 {[%emt 0:00:08]} 24. Bg4+ {[%emt 0:00:16]} Kd6 {[%emt 0:
03:38]} 25. Bb6 {[%emt 0:13:00]} Rdf8 {[%emt 0:14:20]} 26. Rd1+ {[%emt 0:00:42]
} Ke5 {[%emt 0:01:19]} 27. Bc7+ {[%emt 0:03:36]} Kf6 {[%emt 0:05:08]} 28. Rd6+
{[%emt 0:08:22]} Kg7 {[%emt 0:02:07]} 29. Re6 {[%emt 0:15:42]} Re8 {[%emt 0:01:
00]} 30. Rd6 {[%emt 0:04:13]} Rhf8 {[%emt 0:05:35]} 31. Bb6 {[%emt 0:00:21]} e3
{[%emt 0:01:48]} 32. Rd1 {[%emt 0:07:35]} Rf4 {[%emt 0:07:33]} 33. Bd7 {
[%emt 0:01:57]} Ree4 {[%emt 0:07:21]} 34. g3 {[%emt 0:06:20]} Rf7 {[%emt 0:04:
50]} 35. Bxc6 {[%emt 0:00:11]} Bxc6 {[%emt 0:00:07]} 36. Bd4+ {[%emt 0:00:15]}
Kg8 {[%emt 0:00:10]} 37. Re1 e2 {[%emt 0:00:46]} 38. Bc5 {[%emt 0:00:44]} Rf6 {
[%emt 0:01:14]} 39. Bd4 {[%emt 0:00:06]} Rfe6 {[%emt 0:00:39]} 40. Bf2 {
[%emt 0:02:28]} h5 {[%emt 0:02:19]} 41. h4 {[%emt 0:00:12]} Kf7 {[%emt 0:01:05]
} 42. Kg2 {[%emt 0:00:29]} Rxh4+ {[%emt 0:00:32]} 0-1